lending/lending_fUSD_20240128
["ID","MTS","AMOUNT","RATE_DAILY","PERIOD"]
[312907251,1706454632909,-200.0,0.00022815,2]
[312907252,1706454632918,-500.0,0.00022815,2]
[312907253,1706454632926,-200.0,0.00022816,2]
[312907254,1706454632936,-176.87,0.00022816,2]
[312907255,1706454632945,-500.0,0.00022816,2]
[312907256,1706454632955,-500.0,0.00022816,2]
[312907257,1706454632964,-500.0,0.00022816,2]
[312907258,1706454632973,-500.0,0.00022816,2]
[312907259,1706454632983,-200.0,0.00022816,2]
[312907260,1706454632992,-200.0,0.00022816,2]
[312907261,1706454633002,-165.39665393,0.00022821,2]
[312907262,1706454633012,-1226.93251538,0.00022829,2]
[312907263,1706454633022,-1226.93251538,0.00022843,2]
[312907264,1706454633032,-165.39665393,0.00022847,2]
[312907265,1706454633041,-1226.93251538,0.00022857,2]
[312907267,1706454633050,-1226.93251538,0.00022871,2]
[312907268,1706454633060,-165.39665393,0.00022874,2]
[312907269,1706454633069,-1226.93251538,0.00022886,2]
[312907270,1706454633079,-514.5107,0.00022898,2]
[312907271,1706454633088,-177.189,0.00022898,2]
[312907272,1706454633098,-97417.9068,0.00022899,2]
[312907273,1706454633109,-126101.54520289,0.00022899,2]
[312907274,1706454633125,-72516.18533615,0.00022899,2]
[312907275,1706454633137,-439.62247958,0.00022899,2]
[312907276,1706454633159,-1419.47488724,0.00022899,2]
[312907277,1706454633173,-1864.55715174,0.00022899,2]
[312907278,1706454633186,-399.97836,0.00022899,2]
[312907279,1706454633197,-375.48056187,0.00022899,2]
[312907280,1706454633208,-856.06467,0.00022899,2]
[312907281,1706454633219,-5037.50612945,0.00022899,2]
[312907282,1706454633465,612.63,0.00021868,2]
[312907300,1706454637417,-2997.86532533,0.00022899,2]
[312907305,1706454637461,-1818.65433214,0.00022899,2]
[312907308,1706454637473,-3469.48555306,0.00022899,2]
[312907310,1706454637484,-677.48546916,0.00022899,2]
[312907314,1706454637519,-430.0,0.00022899,2]
[312907316,1706454637530,-2062.65,0.00022899,2]
[312907323,1706454637664,-2492.19050604,0.00022899,2]
[312907324,1706454637676,-41574.84933498,0.00022899,2]
[312907325,1706454637685,-163.102421,0.00022899,2]
[312907326,1706454637695,-7700.5638,0.000229,2]
[312907327,1706454637704,-500.5549378,0.000229,2]
[312907328,1706454637713,-154.56927417,0.000229,2]
[312907329,1706454637723,-5000.0,0.000229,2]
[312907330,1706454637732,-165.39665393,0.000229,2]
[312907331,1706454637742,-1226.93251538,0.000229,2]
[312907333,1706454637751,-316.08094486,0.000229,2]
[312907334,1706454637760,-169.9463696,0.000229,2]
[312907337,1706454637769,-189.01095501,0.00022996,2]
[312907339,1706454637779,-489.30794803,0.00022996,2]
[312907341,1706454637788,-530.28990849,0.00022996,2]
[312907343,1706454637797,-212.95599231,0.00022996,2]
[312907344,1706454637808,-10079.46535251,0.00022996,2]
[312907346,1706454637818,-759.8606458,0.00022996,2]
[312907349,1706454637828,-267.2715935,0.00022996,2]
[312907351,1706454637837,-281.84911797,0.00022996,2]
[312907353,1706454637847,-295.95881085,0.00022996,2]
[312907354,1706454637856,-3049.47052457,0.00022996,2]
[312907357,1706454637866,-362.29642557,0.00022996,2]
[312907359,1706454637876,-226.11786442,0.00022997,2]
[312907361,1706454637886,-2907.00228459,0.00022997,2]
[312907363,1706454637896,-203.12390135,0.00022998,2]
[312907365,1706454637905,-2061.58406454,0.00022998,2]
[312907366,1706454637915,-3579.3680722,0.00022998,2]
[312907369,1706454637925,-8336.3805561,0.00022998,2]
[312907370,1706454637934,-63168.1475514,0.00022998,2]
[312907373,1706454637944,-2137.1572703,0.00022998,2]
[312907375,1706454637954,-25708.36918087,0.00022999,2]
[312907376,1706454637963,-6441.03694263,0.00022999,2]
[312907378,1706454637972,-155.39606249,0.00022999,2]
[312907380,1706454637982,-3330.5550022,0.00022999,2]
[312907383,1706454637992,-3861.05352381,0.00022999,2]
[312907385,1706454638001,-220.51136302,0.00022999,2]
[312907386,1706454638010,-352.19046089,0.00022999,2]
[312907388,1706454638020,-300.02,0.00022999,2]
[312907391,1706454638030,-1650.93169972,0.00022999,2]
[312907392,1706454638039,-1000.0,0.00022999,2]
[312907394,1706454638049,-500.0,0.00022999,2]
[312907396,1706454638059,-362.40271201,0.00022999,2]
[312907398,1706454638068,-342.57868558,0.00022999,2]
[312907400,1706454638077,-500.0,0.00022999,2]
[312907401,1706454638087,-500.0,0.00022999,2]
[312907402,1706454638100,-422.51770321,0.00022999,2]
[312907403,1706454638110,-293.27017872,0.00022999,2]
[312907404,1706454638120,-500.0,0.00022999,2]
[312907405,1706454638133,-500.0,0.00022999,2]
[312907406,1706454638143,-500.0,0.00022999,2]
[312907407,1706454638152,-500.0,0.00022999,2]
[312907408,1706454638162,-500.0,0.00022999,2]
[312907410,1706454638172,-394.35003129,0.00022999,2]
[312907412,1706454638184,-565.59898266,0.00022999,2]
[312907414,1706454638194,-154.33836964,0.00023,2]
[312907416,1706454638203,-923893.21559965,0.00023,2]
[312907418,1706454638213,-710.08,0.00023,2]
[312907420,1706454638222,-1592722.08946557,0.00023,2]
[312907427,1706454638281,-31813.13935392,0.00023,2]
[312907429,1706454638292,-1997.2320567,0.00023,2]
[312907432,1706454638307,-2959663.23835028,0.00023,2]
[312907610,1706454639993,-1201.23505853,0.00022998,2]
[312907617,1706454640051,-618.99324043,0.00022998,2]
[312907619,1706454640063,-376.89429033,0.00022998,2]
[312907625,1706454640115,-2977.52841997,0.00022998,2]
[312907775,1706454641579,-200.0,0.00035,120]
[312907779,1706454641603,-1707.06553319,0.000355,30]
[312907782,1706454641627,-200.0,0.00036,120]
[312907786,1706454641650,-6000.00020249,0.00036,30]
[312907789,1706454641674,-487.08646631,0.00036301,30]
[312907793,1706454641700,-12068.14834814,0.0003668,30]
[312907796,1706454641723,-200.0,0.00037,120]
[312907800,1706454641749,-200.0,0.00038,120]
[312907804,1706454641776,-296.91918979,0.00039,40]
[312907808,1706454641800,-494.41608781,0.0004,30]
[312907811,1706454641824,-2000.0,0.0004,30]
[312907816,1706454641857,-177.50850481,0.0004,30]
[312907820,1706454641882,-17349.01553032,0.0004,30]
[312907824,1706454641907,-537.79140771,0.0004,30]
[312907827,1706454641932,-3531.8784391,0.0004,30]
[312907831,1706454641956,-5000.0,0.0004,35]
[312907835,1706454641983,-223.1748298,0.00040975,30]
[312907838,1706454642007,-200.0,0.00041096,30]
[312907842,1706454642032,-1204.112857,0.000414,30]
[312907845,1706454642055,-1200.0,0.000419,30]
[312907849,1706454642079,-500000.0,0.00041995,120]
[312907852,1706454642105,-1374.43033204,0.00042,30]
[312907856,1706454642129,-350.2718683,0.00042,120]
[312907859,1706454642153,-5599.94781786,0.00042,120]
[312907864,1706454642183,-782.18877687,0.00042,120]
[312907867,1706454642208,-150.0,0.00042,30]
[312907871,1706454642236,-150.0,0.000422,30]
[312907875,1706454642259,-150.0,0.000424,30]
[312907879,1706454642286,-150.0,0.000426,30]
[312907882,1706454642311,-150.0,0.000428,30]
[312907886,1706454642338,-150.0,0.00043,30]
[312907889,1706454642364,-152890.24992358,0.00043,30]
[312907893,1706454642390,-150.0,0.000432,30]
[312907897,1706454642419,-150.0,0.000434,30]
[312907900,1706454642443,-150.0,0.000436,30]
[312907904,1706454642469,-150.0,0.000438,30]
[312907907,1706454642493,-215.31174887,0.000438,30]
[312907911,1706454642515,-366.74812054,0.00043836,30]
[312907915,1706454642540,-275.11369044,0.00044,30]
[312907918,1706454642564,-214.67120452,0.00044,30]
[312907922,1706454642587,-1000.0,0.00044,60]
[312907926,1706454642613,-209.0,0.00044125,31]
[312907929,1706454642638,-1000.0,0.00044644,30]
[312907933,1706454642666,-1000.0,0.00044645,30]
[312907951,1706454642807,-1000.0,0.00044645,30]
[312907954,1706454642839,-1000.0,0.00044645,30]
[312907958,1706454642864,-1000.0,0.00044645,30]
[312907962,1706454642889,-1000.0,0.00044647,30]
[312907965,1706454642914,-1000.0,0.00044652,30]
[312907969,1706454642938,-257.3098,0.000448,30]
[312907971,1706454642961,-2268.37215891,0.000449,30]
[312907972,1706454642984,-90000.0,0.000449,30]
[312907973,1706454643006,-4000.00863621,0.00045,30]
[312907976,1706454643029,-826.30554978,0.00045,60]
[312907979,1706454643054,-380.70695324,0.00045,45]
[312907983,1706454643077,-5794.72577953,0.00045,30]
[312907986,1706454643100,-1528.83727488,0.00045,120]
[312907990,1706454643127,-1000.0,0.00045,60]
[312907994,1706454643150,-434.5932,0.0004514,30]
[312907997,1706454643176,-1000.0,0.00045863,30]
[312908001,1706454643201,-482.97926856,0.0004588,100]
[312908004,1706454643225,-1129.0,0.000459,30]
[312908008,1706454643247,-1000.0,0.00046,120]
[312908011,1706454643270,-2515.26832977,0.00046111,30]
[312908015,1706454643292,-187.5,0.00046575,120]
[312908018,1706454643315,-12650.81,0.00046849,120]
[312908022,1706454643338,-154.56927408,0.000469,32]
[312908025,1706454643361,-2000.0,0.00047,30]
[312908029,1706454643383,-1000.0,0.00047,120]
[312908032,1706454643407,-16048.83532631,0.00047,30]
[312908036,1706454643431,-219.65825611,0.0004768,120]
[312908040,1706454643455,-500.0,0.00047945,30]
[312908043,1706454643478,-1000.0,0.00048,120]
[312908048,1706454643501,-231.38017235,0.00048,42]
[312908051,1706454643525,-5757.868319,0.00048,52]
[312908055,1706454643550,-209.0,0.00048093,38]
[312908059,1706454643574,-539.12678842,0.0004852,30]
[312908062,1706454643599,-1000.0,0.00048705,30]
[312908066,1706454643624,-1000.0,0.00048705,30]
[312908068,1706454643649,-1000.0,0.00048705,30]
[312908069,1706454643674,-1000.0,0.00048705,30]
[312908070,1706454643699,-1000.0,0.00048705,30]
[312908071,1706454643724,-1000.0,0.00048705,30]
[312908072,1706454643749,-1000.0,0.00048705,30]
[312908073,1706454643774,-1000.0,0.00048705,30]
[312908074,1706454643799,-1000.0,0.00048705,30]
[312908075,1706454643825,-50000.0,0.00049,39]
[312908076,1706454643848,-39066.88793136,0.00049,30]
[312908077,1706454643871,-10570.0,0.00049,30]
[312908078,1706454643894,-220.37386923,0.00049,120]
[312908079,1706454643918,-1145.033011,0.00049,120]
[312908080,1706454643941,-37792.04,0.00049,60]
[312908081,1706454643965,-1000.0,0.00049,120]
[312908082,1706454643995,-217.46053851,0.00049,120]
[312908083,1706454644018,-4000.0,0.00049,60]
[312908084,1706454644041,-200.0,0.00049,44]
[312908087,1706454644067,-50000.0,0.00049059,30]
[312908088,1706454644091,-156.0,0.000492,60]
[312908089,1706454644114,-375.0,0.00049315,120]
[312908090,1706454644138,-200.0,0.00049315,60]
[312908091,1706454644163,-157.0128,0.00049548,30]
[312908092,1706454644186,-322.417446,0.00049589,30]
[312908093,1706454644212,-151.0128,0.00049648,32]
[312908094,1706454644236,-151.0128,0.00049748,30]
[312908095,1706454644259,-170.19718247,0.000498,30]
[312908098,1706454644282,-5124.31022805,0.000498,30]
[312908100,1706454644305,-7278.0,0.000498,30]
[312908101,1706454644327,-500.0,0.0004989,30]
[312908102,1706454644439,-154.56927408,0.000499,44]
[312908103,1706454644464,-466.40362141,0.0004999,120]
[312908104,1706454644489,-50000.0,0.0005,40]
[312908105,1706454644511,-1252.66667299,0.0005,60]
[312908106,1706454644532,-1008.7871044,0.0005,120]
[312908107,1706454644554,-359.7710561,0.0005,120]
[312908108,1706454644576,-11211.74668504,0.0005,30]
[312908109,1706454644598,-152.83937647,0.0005,30]
[312908110,1706454644620,-1029.0,0.0005,30]
[312908111,1706454644644,-8513.93183053,0.0005,30]
[312908112,1706454644666,-156.13272613,0.0005,30]
[312908113,1706454644687,-369.55135532,0.0005,120]
[312908114,1706454644710,-501.2311643,0.0005,120]
[312908115,1706454644733,-263.55336967,0.0005,46]
[312908116,1706454644756,-73212.18,0.0005,30]
[312908117,1706454644779,-166.0,0.0005,120]
[312908118,1706454644801,-717086.2280355,0.0005,30]
[312908119,1706454644823,-2000.0,0.0005,120]
[312908120,1706454644844,-401.20358921,0.0005,120]
[312908121,1706454644867,-197.0,0.0005,120]
[312908122,1706454644889,-2318.0,0.0005,60]
[312908123,1706454644912,-2000.0,0.0005,120]
[312908124,1706454644935,-200.0,0.0005,120]
[312908125,1706454644957,-50000.0,0.0005,120]
[312908126,1706454644979,-166760.0,0.0005,30]
[312908127,1706454645003,-50333.70733865,0.0005,30]
[312908128,1706454645025,-506.63954526,0.0005,90]
[312908129,1706454645047,-17976.49454453,0.0005,60]
[312908130,1706454645069,-2656.88338872,0.0005,30]
[312908131,1706454645091,-267.1539029,0.0005,30]
[312908132,1706454645114,-5000.0,0.0005,120]
[312908133,1706454645137,-5000.0,0.0005,120]
[312908134,1706454645159,-5000.0,0.0005,120]
[312908136,1706454645190,-689.34475556,0.0005,120]
[312908139,1706454645212,-5000.0,0.0005,120]
[312908143,1706454645234,-5000.0,0.0005,120]
[312908144,1706454645256,-783.34,0.0005,120]
[312908145,1706454645280,-698.730822,0.0005,31]
[312908146,1706454645304,-5000.0,0.0005,120]
[312908147,1706454645327,-289.59,0.0005,120]
[312908148,1706454645350,-249.05,0.0005,120]
[312908149,1706454645372,-5000.0,0.0005,120]
[312908150,1706454645394,-401.0,0.0005,30]
[312908151,1706454645417,-151.0128,0.00050148,59]
[312908152,1706454645438,-217.630547,0.00050236,30]
[312908153,1706454645459,-217.794476,0.00050236,30]
[312908154,1706454645480,-156.0,0.000503,60]
[312908155,1706454645502,-5000.0,0.00050375,120]
[312908156,1706454645523,-5000.0,0.00050375,120]
[312908157,1706454645545,-5000.0,0.00050375,120]
[312908158,1706454645566,-5000.0,0.00050375,120]
[312908159,1706454645587,-5000.0,0.00050375,120]
[312908160,1706454645609,-5000.0,0.00050375,120]
[312908161,1706454645631,-5000.0,0.00050375,120]
[312908162,1706454645653,-500.0,0.00050438,30]
[312908163,1706454645677,-151.0128,0.00050448,59]
[312908164,1706454645699,-2537.56140096,0.000505,30]
[312908165,1706454645723,-1382.30823178,0.00050531,30]
[312908166,1706454645748,-1535.71259453,0.00050531,30]
[312908167,1706454645771,-157.0128,0.00050548,59]
[312908168,1706454645795,-151.0128,0.00050648,49]
[312908169,1706454645817,-161.91,0.0005069,120]
[312908170,1706454645840,-179.46,0.0005069,120]
[312908171,1706454645864,-151.0128,0.00050748,59]
[312908172,1706454645887,-3940.2,0.0005075,120]
[312908173,1706454645910,-5000.0,0.0005075,120]
[312908174,1706454645935,-5000.0,0.0005075,120]
[312908175,1706454645960,-5000.0,0.0005075,120]
[312908176,1706454645982,-3050.58,0.0005075,120]
[312908177,1706454646098,-5000.0,0.0005075,120]
[312908178,1706454646123,-2141.11,0.0005075,120]
[312908179,1706454646146,-200.0,0.000509,30]
[312908180,1706454646172,-1208.0,0.00050963,30]
[312908181,1706454646195,-259.11,0.0005097,120]
[312908182,1706454646217,-150.5,0.0005098,120]
[312908183,1706454646239,-284.89,0.0005098,120]
[312908184,1706454646261,-516.44488623,0.00050986,30]
[312908185,1706454646284,-200.0,0.00050987,30]
[312908186,1706454646307,-200.0,0.00050987,32]
[312908187,1706454646330,-150.5,0.0005099,120]
[312908188,1706454646353,-150.5,0.0005099,120]
[312908189,1706454646376,-152.18,0.0005099,120]
[312908190,1706454646404,-50000.0,0.00051,41]
[312908191,1706454646428,-250.0,0.00051,50]
[312908192,1706454646450,-1000.0,0.00051,60]
[312908193,1706454646473,-31700.0,0.00051,120]
[312908194,1706454646499,-356.1858609,0.00051,52]
[312908195,1706454646523,-300.0,0.000511,30]
[312908196,1706454646548,-5000.0,0.00051125,120]
[312908197,1706454646573,-5000.0,0.00051125,120]
[312908199,1706454646598,-816.3,0.00051125,120]
[312908200,1706454646621,-5000.0,0.00051125,120]
[312908201,1706454646647,-151.0128,0.00051148,59]
[312908202,1706454646671,-300.0,0.000513,30]
[312908203,1706454646695,-156.0,0.000514,60]
[312908204,1706454646718,-151.0128,0.00051448,59]
[312908205,1706454646742,-300.0,0.000515,30]
[312908206,1706454646766,-5000.0,0.000515,120]
[312908207,1706454646789,-5000.0,0.000515,120]
[312908208,1706454646812,-5000.0,0.000515,120]
[312908209,1706454646835,-318.72122111,0.00051535,120]
[312908210,1706454646858,-157.0128,0.00051548,59]
[312908211,1706454646881,-153.15441342,0.00051589,30]
[312908212,1706454646906,-151.0128,0.00051648,69]
[312908213,1706454646930,-300.0,0.000517,30]
[312908214,1706454646953,-151.0128,0.00051748,59]
[312908215,1706454646976,-1000.0,0.000518,120]
[312908216,1706454646999,-961.0,0.000518,120]
[312908217,1706454647021,-1000.0,0.000518,120]
[312908218,1706454647044,-5000.0,0.00051875,120]
[312908219,1706454647067,-5000.0,0.00051875,120]
[312908220,1706454647090,-772.51,0.00051875,120]
[312908221,1706454647113,-281.99536857,0.000519,120]
[312908222,1706454647136,-156.52136997,0.000519,120]
[312908223,1706454647160,-607.0,0.000519,120]
[312908226,1706454647185,-1542.1291832,0.000519,30]
[312908228,1706454647210,-407.0,0.000519,120]
[312908231,1706454647233,-200.0,0.00051987,31]
[312908234,1706454647255,-200.0,0.00051987,35]
[312908238,1706454647280,-50000.0,0.00052,42]
[312908241,1706454647302,-200.30620377,0.00052,30]
[312908245,1706454647326,-2043.98,0.00052,60]
[312908247,1706454647350,-13227.02076686,0.00052,30]
[312908248,1706454647373,-1000.0,0.00052,60]
[312908249,1706454647395,-500.0,0.00052,30]
[312908250,1706454647417,-1500.0,0.00052,120]
[312908251,1706454647439,-499.93500006,0.00052,120]
[312908252,1706454647462,-1593.75,0.00052,90]
[312908253,1706454647485,-2000.0,0.00052,120]
[312908254,1706454647508,-9056.0,0.00052,120]
[312908255,1706454647533,-307.995,0.00052,30]
[312908256,1706454647558,-300.0,0.00052,30]
[312908257,1706454647581,-200.0,0.00052,30]
[312908258,1706454647604,-29868.71557734,0.00052,120]
[312908259,1706454647628,-300.0,0.00052,53]
[312908260,1706454647745,-152.09,0.00052,120]
[312908261,1706454647771,-152.09,0.00052,120]
[312908262,1706454647797,-152.09,0.00052,120]
[312908263,1706454647824,-152.09,0.00052,120]
[312908264,1706454647847,-152.09,0.00052,120]
[312908265,1706454647871,-152.09,0.00052,120]
[312908266,1706454647894,-152.09,0.00052,120]
[312908267,1706454647920,-152.09,0.00052,120]
[312908268,1706454647943,-152.09,0.00052,120]
[312908269,1706454647967,-152.09,0.00052,120]
[312908270,1706454647992,-152.09,0.00052,120]
[312908271,1706454648016,-152.09,0.00052,120]
[312908272,1706454648040,-152.09,0.00052,120]
[312908273,1706454648064,-152.09,0.00052,120]
[312908274,1706454648089,-152.09,0.00052,120]
[312908275,1706454648114,-152.09,0.00052,120]
[312908276,1706454648138,-152.09,0.00052,120]
[312908277,1706454648164,-152.09,0.00052,120]
[312908278,1706454648190,-152.09,0.00052,120]
[312908279,1706454648215,-152.09,0.00052,120]
[312908280,1706454648239,-152.09,0.00052,120]
[312908281,1706454648264,-152.09,0.00052,120]
[312908282,1706454648288,-152.09,0.00052,120]
[312908283,1706454648311,-152.09,0.00052,120]
[312908284,1706454648335,-152.09,0.00052,120]
[312908285,1706454648359,-152.09,0.00052,120]
[312908286,1706454648382,-152.09,0.00052,120]
[312908287,1706454648406,-152.09,0.00052,120]
[312908288,1706454648431,-152.09,0.00052,120]
[312908289,1706454648454,-152.09,0.00052,120]
[312908290,1706454648479,-152.09,0.00052,120]
[312908291,1706454648503,-152.09,0.00052,120]
[312908292,1706454648528,-152.09,0.00052,120]
[312908293,1706454648554,-152.09,0.00052,120]
[312908294,1706454648579,-152.09,0.00052,120]
[312908295,1706454648603,-152.09,0.00052,120]
[312908296,1706454648629,-152.09,0.00052,120]
[312908297,1706454648654,-152.09,0.00052,120]
[312908298,1706454648680,-152.09,0.00052,120]
[312908299,1706454648705,-152.09,0.00052,120]
[312908300,1706454648730,-152.09,0.00052,120]
[312908301,1706454648753,-152.09,0.00052,120]
[312908302,1706454648778,-152.09,0.00052,120]
[312908303,1706454648802,-152.09,0.00052,120]
[312908304,1706454648826,-152.09,0.00052,120]
[312908305,1706454648852,-152.09,0.00052,120]
[312908306,1706454648875,-152.09,0.00052,120]
[312908307,1706454648899,-152.09,0.00052,120]
[312908308,1706454648923,-152.09,0.00052,120]
[312908309,1706454648948,-152.09,0.00052,120]
[312908310,1706454648972,-152.09,0.00052,120]
[312908311,1706454648996,-152.09,0.00052,120]
[312908312,1706454649020,-152.09,0.00052,120]
[312908313,1706454649043,-4284.42027745,0.00052029,120]
[312908314,1706454649069,-628.08878516,0.00052054,30]
[312908315,1706454649092,-500.0,0.00052054,31]
[312908316,1706454649115,-314.39348585,0.00052054,31]
[312908317,1706454649137,-413.92212772,0.00052054,30]
[312908318,1706454649161,-526.11871411,0.00052054,31]
[312908319,1706454649185,-270.25016331,0.00052054,31]
[312908320,1706454649209,-523.27970783,0.00052054,31]
[312908321,1706454649232,-518.32067458,0.00052054,31]
[312908322,1706454649257,-534.02494946,0.00052054,31]
[312908323,1706454649281,-530.53824888,0.00052054,31]
[312908324,1706454649304,-500.0,0.00052054,31]
[312908325,1706454649422,-500.0,0.00052054,31]
[312908326,1706454649446,-502.26248035,0.00052054,31]
[312908327,1706454649469,-500.0,0.00052054,31]
[312908328,1706454649493,-631.50900721,0.00052054,31]
[312908329,1706454649519,-528.59934104,0.00052054,31]
[312908330,1706454649543,-480.3119923,0.00052054,31]
[312908331,1706454649567,-503.45546477,0.00052054,31]
[312908332,1706454649591,-623.33486772,0.00052054,31]
[312908333,1706454649617,-543.44,0.00052054,31]
[312908334,1706454649642,-556.07752899,0.00052054,31]
[312908335,1706454649665,-500.0,0.00052054,31]
[312908336,1706454649690,-322.92075092,0.00052054,31]
[312908337,1706454649715,-225.7735931,0.00052054,31]
[312908338,1706454649737,-154.67999167,0.00052054,31]
[312908339,1706454649760,-533.24645569,0.00052054,31]
[312908340,1706454649784,-537.87780952,0.00052054,31]
[312908341,1706454649808,-500.0,0.00052054,31]
[312908342,1706454649831,-473.26354064,0.00052054,31]
[312908343,1706454649854,-500.0,0.00052054,31]
[312908344,1706454649876,-500.0,0.00052054,31]
[312908345,1706454649900,-541.16623051,0.00052054,31]
[312908346,1706454649925,-500.0,0.00052054,31]
[312908347,1706454649948,-206.93594598,0.00052054,31]
[312908348,1706454649972,-509.24247305,0.00052054,31]
[312908349,1706454649997,-180.14887881,0.00052054,31]
[312908350,1706454650023,-500.0,0.00052054,31]
[312908351,1706454650047,-159.45124238,0.00052054,31]
[312908352,1706454650072,-159.83912075,0.00052054,31]
[312908353,1706454650101,-500.0,0.00052054,31]
[312908354,1706454650125,-535.87328858,0.00052054,31]
[312908355,1706454650149,-595.46817984,0.00052054,30]
[312908356,1706454650174,-500.0,0.00052054,31]
[312908357,1706454650202,-500.0,0.00052054,31]
[312908358,1706454650226,-834.81,0.00052054,31]
[312908359,1706454650249,-528.23,0.00052054,31]
[312908360,1706454650273,-309.66698405,0.00052054,31]
[312908361,1706454650297,-500.0,0.00052054,31]
[312908362,1706454650323,-183.94046812,0.00052054,31]
[312908363,1706454650348,-500.0,0.00052054,31]
[312908364,1706454650373,-586.28,0.00052054,31]
[312908365,1706454650398,-188.58304451,0.00052054,31]
[312908366,1706454650427,-500.0,0.00052054,31]
[312908367,1706454650451,-500.0,0.00052054,31]
[312908368,1706454650475,-214.03521868,0.00052054,31]
[312908369,1706454650499,-500.0,0.00052054,31]
[312908370,1706454650524,-586.91736848,0.00052054,31]
[312908371,1706454650547,-500.0,0.00052054,31]
[312908372,1706454650572,-163.66735689,0.00052054,31]
[312908373,1706454650597,-500.0,0.00052054,31]
[312908374,1706454650622,-500.0,0.00052054,31]
[312908375,1706454650646,-500.0,0.00052054,31]
[312908376,1706454650671,-500.0,0.00052054,31]
[312908377,1706454650695,-217.13795153,0.00052054,31]
[312908378,1706454650719,-203.5264881,0.00052054,31]
[312908379,1706454650743,-500.0,0.00052054,31]
[312908380,1706454650766,-209.93506502,0.00052054,31]
[312908381,1706454650790,-500.0,0.00052054,31]
[312908382,1706454650814,-736.24,0.00052054,31]
[312908383,1706454650839,-500.0,0.00052054,31]
[312908384,1706454650863,-206.11272475,0.00052054,31]
[312908385,1706454650886,-500.0,0.00052054,31]
[312908386,1706454650910,-500.0,0.00052054,31]
[312908387,1706454651029,-199.17299315,0.00052054,31]
[312908388,1706454651053,-184.13155997,0.00052054,31]
[312908389,1706454651077,-195.63323051,0.00052054,31]
[312908390,1706454651103,-633.77957724,0.00052054,31]
[312908391,1706454651126,-500.0,0.00052054,31]
[312908392,1706454651149,-221.12315111,0.00052054,31]
[312908393,1706454651174,-186.73762944,0.00052054,31]
[312908394,1706454651198,-178.45945673,0.00052054,31]
[312908395,1706454651221,-156.32254122,0.00052054,31]
[312908396,1706454651244,-500.0,0.00052054,31]
[312908397,1706454651269,-157.51747866,0.00052054,31]
[312908398,1706454651293,-171.15402312,0.00052054,31]
[312908399,1706454651317,-500.0,0.00052054,31]
[312908400,1706454651341,-159.53590887,0.00052054,31]
[312908401,1706454651365,-500.0,0.00052054,31]
[312908402,1706454651388,-500.0,0.00052054,31]
[312908403,1706454651412,-177.77614738,0.00052054,31]
[312908404,1706454651435,-500.0,0.00052054,31]
[312908405,1706454651458,-500.0,0.00052054,31]
[312908406,1706454651482,-158.68360814,0.00052054,31]
[312908407,1706454651506,-198.67721519,0.00052054,31]
[312908408,1706454651529,-500.0,0.00052054,31]
[312908409,1706454651553,-210.47974854,0.00052054,31]
[312908410,1706454651576,-500.0,0.00052054,31]
[312908411,1706454651600,-206.88909015,0.00052054,31]
[312908412,1706454651624,-1590.02,0.00052054,31]
[312908413,1706454651647,-546.08137498,0.00052054,31]
[312908414,1706454651671,-162.96072013,0.00052054,31]